Cogmind - Beta 14 @@@ ROGUE MODE // 2025.03.12 @ 22:37:05 Player: Bbenedict8 Result: Self-destructed Performance ------------- Evolutions (1) 500 Regions Visited (4) 800 Robots Destroyed (81) 405 Value Destroyed (2171) 2171 Prototype IDs (3) 60 Alien Tech Used (0) 0 Bonus (550) 550 TOTAL SCORE: 4486 Bonus ------- High Alert Combat Kills 350 Follower Combat Kills 200 Cogmind --------- Core Integrity 117/400 Matter 127/300 Energy 280/280 System Corruption 0% Temperature Cool (0) Movement Rolling (90) Location -9/Storage Parts ------- > --- POWER (1) -------- Heavy Ion Engine > --- PROPULSION (2) --- Armored Wheel Armored Wheel > --- UTILITY (2) ------ Medium Storage Unit Advanced Targeting Computer > --- WEAPON (4) ------- Shotgun Improved Assault Rifle > --- INVENTORY (10) --- Ion Engine Heat Sink High-capacity Storage Unit Particle Charger Beam Rifle Improved Assault Rifle Rocket Launcher Maul Peak State ------------ > --- POWER ------------ Heavy Ion Engine > --- PROPULSION ------- Armored Wheel Armored Wheel > --- UTILITY ---------- Medium Storage Unit Advanced Targeting Computer > --- WEAPON ----------- Beam Rifle Improved Assault Rifle Improved Assault Rifle Maul > --- INVENTORY -------- Light Ion Engine Armored Wheel Armored Wheel Heat Sink High-capacity Storage Unit Particle Charger Shotgun Rocket Launcher Rocket Launcher Mini Grenade Launcher [Rating: 22] Favorites ----------- Power Improved Ion Engine Engine Improved Ion Engine Propulsion Armored Wheel Wheel Armored Wheel Utility Medium Storage Unit Device Sensor Array Storage Medium Storage Unit Processor Advanced Targeting Computer Weapon Improved Assault Rifle Energy Gun Beam Rifle Energy Cannon Light EM Pulse Cannon Ballistic Gun Improved Assault Rifle Launcher Mini Grenade Launcher Impact Weapon Maul Build | -11 -10 -10 -9 -9 ------- Run | Yrd Mat Min Mat Sto Slots Evolved 2 | . . . 2 . Power . | . . . . . Propulsion . | . . . . . Utility . | . . . . . Weapon 2 | . . . 2 . Parts Attached 49 | 6 3 . 20 20 Power 5 | 1 . . 2 2 Engine 5 | 1 . . 2 2 Core . | . . . . . Reactor . | . . . . . Propulsion 10 | 2 2 . 2 4 Treads . | . . . . . Leg . | . . . . . Wheel 10 | 2 2 . 2 4 Hover . | . . . . . Flight . | . . . . . Utility 7 | 1 1 . 5 . Device 2 | . 1 . 1 . Storage 4 | 1 . . 3 . Processor 1 | . . . 1 . Hackware . | . . . . . Protection . | . . . . . Artifact . | . . . . . Weapon 27 | 2 . . 11 14 Energy Gun 3 | . . . 2 1 Energy Cannon 1 | . . . 1 . Ballistic Gun 12 | 2 . . 4 6 Ballistic Cannon . | . . . . . Launcher 8 | . . . 3 5 Special Weapon . | . . . . . Impact Weapon 3 | . . . 1 2 Slashing Weapon . | . . . . . Piercing Weapon . | . . . . . Special Melee Weapon . | . . . . . Unidentified Prototypes 1 | . . . . 1 Parts Lost 10 | . . 1 4 5 Power 1 | . . . 1 . Propulsion 2 | . . . . 2 Utility 1 | . . 1 . . Weapon 6 | . . . 3 3 Highest Loss Streak 4 | . . 1 3 4 To Critical Strikes . | . . . . . Average Slot Usage (%) 98 | . 94 98 98 98 Engine 11 | . 14 14 10 11 Wheel 22 | . 28 28 22 21 Device 3 | . 9 12 2 . Storage 11 | . 14 14 11 11 Processor 7 | . . . 8 11 Energy Gun 8 | . . . 11 10 Energy Cannon 2 | . . . 6 . Ballistic Gun 23 | . 28 28 22 22 Launcher 1 | . . . 2 2 Impact Weapon 3 | . . . . 8 Peak Build Rating 22 | 6 10 10 18 22 Average Rating 16 | 3 8 9 16 20 On Entrance 8 | . 6 10 9 18 Naked Turns . | . . . . . Heaviest Build 30 | 11 12 12 28 30 Greatest Support 26 | 26 26 24 24 24 Greatest Overweight (x) 2 | 2 . . 1 2 Average Overweight (x) . | . . . . . Largest Inventory Capacity 20 | 8 8 8 20 10 Average Capacity 9 | 7 8 8 9 10 Most Carried 10 | 4 8 8 10 10 Average Carried 8 | 1 6 8 9 9 Final Capacity 10 | 8 8 8 10 10 Final Carried 9 | 2 8 8 9 8 Class Distribution -------------------- 57% | Gunner 27% | Mutant 15% | Commander-Gunner Dominant Class ---------------- Mutant | -10/Materials Mutant | -10/Mines Gunner | -9/Materials Gunner | -9/Storage Resources | -11 -10 -10 -9 -9 ----------- Run | Yrd Mat Min Mat Sto Matter Collected 1445 | 220 17 168 390 650 Remotely . | . . . . . Salvage Created 3081 | 58 17 230 1152 1624 Parts 194 | 2 3 9 87 93 Haulers Intercepted 4 | . . . . 4 Recyclers Shooed 2 | . . 1 . 1 Parts Field Recycled . | . . . . . Retrieved Matter . | . . . . . Parts Self-Destructed . | . . . . . Prevented . | . . . . . Kills | -11 -10 -10 -9 -9 ------- Run | Yrd Mat Min Mat Sto Combat Hostiles Destroyed 57 | . . 4 27 26 Guns 48 | . . 4 19 25 Cannons 5 | . . . 5 . AOE 4 | . . . 3 1 Classes Destroyed 11 | 1 1 2 4 3 Worker 4 | . . . 1 3 Builder 2 | . . . 2 . Hauler 4 | . . . . 4 Recycler 4 | 1 . 1 . 2 Mechanic 1 | . . . . 1 Operator 3 | . 1 . 1 1 Watcher 6 | . . . 4 2 Swarmer 14 | . . 1 10 3 Grunt 24 | . . 3 10 11 Duelist 1 | . . . . 1 Sentry 18 | . . . 7 11 Best Kill Streak 7 | 1 1 2 7 7 Combat Bots Only 5 | . . 1 5 3 Max Kills in Single Turn 2 | 1 1 1 2 2 Gunslinging 1 | . . . 1 1 Exploded 1 | . . . 1 1 Melee . | . . . . . Uniques/NPCs Destroyed . | . . . . . Combat | -11 -10 -10 -9 -9 -------- Run | Yrd Mat Min Mat Sto Hostile Shots Fired 212 | . . 31 87 94 Missed 59 | . . 7 31 21 Damage Taken 2270 | . . 291 756 1223 Core 342 | . . 59 87 196 Absorbed by Shields . | . . . . . Regen/Repaired (Parts) 179 | . . . . 179 Core Remaining (%) 88 | 100 . 76 . . Volleys Fired 161 | 4 6 20 52 79 Largest 4 | 2 2 2 4 4 Hottest 166 | 40 40 40 166 152 Shots Fired 471 | 8 12 40 192 219 Gun 422 | 8 12 40 159 203 Cannon 31 | . . . 31 . Launcher 18 | . . . 2 16 Special . | . . . . . Kinetic 306 | 8 12 40 104 142 Thermal 61 | . . . . 61 Explosive 18 | . . . 2 16 Electromagnetic 86 | . . . 86 . Robot Hit Streak 29 | 2 1 6 15 29 Robot Miss Streak 6 | 1 6 4 6 3 Penetration Max . | . . . . . Secondary Targets 5 | . . 1 2 2 Max Gunslinging Chain 1 | . . 1 1 1 Shots Hit Robots 259 | 3 2 24 89 141 Core Hits 126 | 2 1 11 51 61 Critical Kills . | . . . . . Critical Parts Destroyed 1 | . . . . 1 Critical Strikes 5 | . . . 1 4 Burn 3 | . . . . 3 Destroy 1 | . . . . 1 Corrupt 1 | . . . 1 . Melee Attacks 12 | . . . 2 10 Impact 12 | . . . 2 10 Slashing . | . . . . . Piercing . | . . . . . Sneak Attacks . | . . . . . Combat Hostiles . | . . . . . Follow-up Attacks . | . . . . . Damage Inflicted 4293 | 34 28 240 1618 2373 Guns 3476 | 34 28 240 994 2180 Cannons 408 | . . . 408 . Explosions 409 | . . . 216 193 Melee . | . . . . . Ramming . | . . . . . Kinetic 2458 | 34 28 240 570 1586 Thermal 767 | . . . 173 594 Explosive 236 | . . . 43 193 Electromagnetic 832 | . . . 832 . Impact . | . . . . . Slashing . | . . . . . Piercing . | . . . . . Highest Corruption . | . . . . . Average Corruption . | . . . . . Corruption Purged . | . . . . . Corruption Blocked . | . . . . . Overload Shots . | . . . . . Overflow Damage 12 | . . . 6 6 Projectiles . | . . . . . Explosions 12 | . . . 6 6 Melee . | . . . . . Knockbacks . | . . . . . Impact . | . . . . . Kinetic . | . . . . . Secondary . | . . . . . Self-Inflicted Damage 98 | . . . 34 64 Shots 5 | . . . 1 4 Rammed . | . . . . . Targets Rammed . | . . . . . Kicked . | . . . . . Crushed . | . . . . . Highest Temperature 330 | . . 40 330 316 Average Temperature 92 | . . 16 101 90 Received Heat Transfer 813 | . . 141 252 420 Effects 1 | . . . . 1 Energy Bleed 1 | . . . . 1 Siege Activations . | . . . . . Robots Corrupted . | . . . . . Combat Hostiles . | . . . . . Parts Fried 1 | . . . 1 . Impact Corruptions . | . . . . . Robots Melted . | . . . . . Combat Hostiles . | . . . . . Parts Melted 5 | . . . . 5 Heat Transferred 1939 | . . . 200 1739 Parts Sabotaged . | . . . . . Parts Stolen . | . . . . . Parts Stripped . | . . . . . Power Chain Reactions 3 | . . . 3 . Alert | -11 -10 -10 -9 -9 ------- Run | Yrd Mat Min Mat Sto Peak Influence 787 | 5 8 195 560 787 Initial 215 | . 3 3 17 215 Average 388 | 1 3 108 328 611 Maximum Alert Level 3 | . . . 2 3 Low Security (%) 28 | 100 100 100 13 . Level 1 21 | . . . 48 12 Level 2 37 | . . . 37 59 Level 3 12 | . . . . 28 Level 4 . | . . . . . Level 5 . | . . . . . High Security . | . . . . . Max Security . | . . . . . Squads Dispatched 7 | . 1 . 1 5 Investigation 3 | . . . . 3 Extermination . | . . . . . Reinforcement 3 | . 1 . 1 1 Assault 1 | . . . . 1 Garrison . | . . . . . Intercept . | . . . . . Searches Triggered . | . . . . . Construction Impeded . | . . . . . Haulers Reinforced . | . . . . . Active Scanning Responses . | . . . . . Cargo Convoy Interrupts . | . . . . . Stealth | -11 -10 -10 -9 -9 --------- Run | Yrd Mat Min Mat Sto Distress Signals 5 | . . . 4 1 Communications Jammed . | . . . . . Distress Signals . | . . . . . Times Spotted 78 | . 2 9 36 31 Peak Tracking Total 5 | . 2 3 3 5 Tactical Retreats 2 | . . . . 2 Traps | -11 -10 -10 -9 -9 ------- Run | Yrd Mat Min Mat Sto Traps Triggered 2 | . . . . 2 Indirectly . | . . . . . Trap Hack Attempts . | . . . . . Triggered . | . . . . . Disarmed . | . . . . . Reprogrammed . | . . . . . Reused . | . . . . . Traps Extracted . | . . . . . Installed . | . . . . . Triggered . | . . . . . Machines | -11 -10 -10 -9 -9 ---------- Run | Yrd Mat Min Mat Sto Machines Disabled 9 | . . . 5 4 Max in Single Turn 2 | . . . 2 1 Garrison Access 1 | . . . . 1 Machines Repaired . | . . . . . Machines Dismantled . | . . . . . Machines Sabotaged . | . . . . . Overloaded Fab Kills . | . . . . . Hacking | -11 -10 -10 -9 -9 --------- Run | Yrd Mat Min Mat Sto Machines Accessed 15 | . 1 . 3 11 Terminals 12 | . 1 . 2 9 Fabricators . | . . . . . Repair Stations 1 | . . . . 1 Recycling Units . | . . . . . Scanalyzers 1 | . . . 1 . Garrison Access 1 | . . . . 1 Total Hacks 34 | . 2 . 6 26 Successful 21 | . . . 6 15 Failed 13 | . 2 . . 11 Catastrophic 1 | . . . . 1 Database Lockouts . | . . . . . Manual 4 | . . . 1 3 Terminals 23 | . 2 . 3 18 Fabricators . | . . . . . Repair Stations 5 | . . . . 5 Recycling Units . | . . . . . Scanalyzers 3 | . . . 3 . Garrison Access 3 | . . . . 3 Terminal Hacks 12 | . . . 3 9 Record 1 | . . . 1 . Part Schematic 2 | . . . . 2 Robot Analysis 2 | . . . . 2 Prototype ID Bank 1 | . . . . 1 Open Door 3 | . . . . 3 Unreport Threat 2 | . . . 1 1 Investigation Status 1 | . . . 1 . Fabricator Hacks . | . . . . . Repair Station Hacks 4 | . . . . 4 Scan Component 2 | . . . . 2 Repair 2 | . . . . 2 Recycling Unit Hacks . | . . . . . Scanalyzer 3 | . . . 3 . Insert Component 1 | . . . 1 . Analyze 2 | . . . 2 . Garrison Access Hacks 1 | . . . . 1 Seal Access 1 | . . . . 1 Unauthorized Hacks 1 | . . . . 1 Terminals 1 | . . . . 1 Disrupt 1 | . . . . 1 Fabricators . | . . . . . Repair Stations . | . . . . . Recycling Units . | . . . . . Scanalyzers . | . . . . . Garrison Access . | . . . . . Data Cores Recovered 2 | . . . 1 1 Used 1 | . . . 1 . Hacking Detections 11 | . 1 . 1 9 Full Trace Events 3 | . . . . 3 Feedback Events . | . . . . . Feedback Blocked . | . . . . . Robot Schematics Acquired . | . . . . . Robots Built . | . . . . . Authchips . | . . . . . Time . | . . . . . Total Robot Build Rating . | . . . . . Part Schematics Acquired 3 | . . . 1 2 Parts Built . | . . . . . Authchips . | . . . . . Time . | . . . . . Total Part Build Rating . | . . . . . Parts Repaired 2 | . . . . 2 Time 64 | . . . . 64 Parts Recycled . | . . . . . Recycled Matter . | . . . . . Retrieved Matter . | . . . . . Retrieved Components . | . . . . . Parts Scanalyzed 1 | . . . 1 . Part Schematics Acquired 1 | . . . 1 . Parts Damaged . | . . . . . Bothacking | -11 -10 -10 -9 -9 ------------ Run | Yrd Mat Min Mat Sto Used RIF Installer . | . . . . . Robots Hacked . | . . . . . Non-combat . | . . . . . Combat . | . . . . . Robot Hacks Applied . | . . . . . Relay Couplers Released . | . . . . . Fabnet Peak Effective % . | . . . . . Robots Rewired . | . . . . . Allies Hacked . | . . . . . Hacks Repelled . | . . . . . Allies | -11 -10 -10 -9 -9 -------- Run | Yrd Mat Min Mat Sto Total Allies 13 | . . 3 . 10 Largest Group 10 | . . 3 2 10 Highest-Rated Group 88 | . . 40 32 88 Highest-Rated Ally 16 | . . 16 16 16 Total Orders 6 | . . . 4 2 STAY 1 | . . . 1 . FOLLOW 2 | . . . 2 . GUARD 2 | . . . 1 1 AID 1 | . . . . 1 Ally Attacks 89 | . . 29 20 40 Total Damage 819 | . . 291 175 353 Kills 11 | . . 5 4 2 Allies Corrupted . | . . . . . Allies Melted . | . . . . . Intel | -11 -10 -10 -9 -9 ------- Run | Yrd Mat Min Mat Sto Robot Analysis Total 2 | . . . . 2 Derelict Logs Recovered 2 | . . 2 . . Drone Launches . | . . . . . Drone Recoveries . | . . . . . Exploration | -11 -10 -10 -9 -9 ------------- Run | Yrd Mat Min Mat Sto Turns Passed 3068 | 80 147 523 1003 1315 Spaces Moved 1986 | 57 131 477 644 677 Core 27 | 27 . . . . Treads . | . . . . . Legs . | . . . . . Wheels 1959 | 30 131 477 644 677 Hover . | . . . . . Flight . | . . . . . Fastest Speed 50 | 50 85 90 90 90 Average Speed 98 | 92 89 90 100 104 Slowest Speed 150 | 150 90 90 105 120 Overloaded Moves . | . . . . . Propulsion Burnouts . | . . . . . Robots Hopped . | . . . . . Cave-ins Triggered . | . . . . . Exploration Rate (%) 54 | 4 22 91 66 89 Regions Visited 4 Branch Regions 2 Pre-discovered Areas . | . . . . . Known Exits Taken . | . . . . . Unknown Exits Taken 4 | 1 1 1 1 . Scrap Searched 1 | . . 1 . . Spaces Dug 12 | . . . 2 10 Terrain Destroyed 121 | . . . 26 95 Melee 2 | . . . 2 . Projectile . | . . . . . AOE 119 | . . . 24 95 Terrain Rammed . | . . . . . Walls Destroyed . | . . . . . Machines Disabled . | . . . . . Actions | -11 -10 -10 -9 -9 --------- Run | Yrd Mat Min Mat Sto Total 2726 | 76 149 534 875 1092 Wait 472 | . . 38 142 292 Move 1982 | 56 130 476 643 677 Hop . | . . . . . Pick Up 25 | 8 7 . 7 3 Fast Attach 12 | 2 1 . 4 5 Attach 10 | 4 . . 4 2 Detach . | . . . . . Swap 27 | . 2 . 12 13 Drop 22 | 2 3 . 9 8 Fire 161 | 4 6 20 52 79 Melee 12 | . . . 2 10 Ram . | . . . . . Kick . | . . . . . Crush . | . . . . . Escape Stasis . | . . . . . Rewire 3 | . . . . 3 Trap . | . . . . . Miscellaneous . | . . . . . Route ------- -11/Scrapyard -10/Materials -10/Mines (discovered 2 exits: *Mat x2) -9/Materials (discovered 2 exits: [*Mat] / *Sto) -9/Storage (discovered 1 exit: [*Mat]) History --------- Turn | Location | Event 7 | -11/Scrapyard | Discovered new exit (range 15) 81 | -11/Scrapyard | Entered Materials 193 | -10/Materials | Discovered new exit (range 12) 228 | -10/Materials | Entered Mines 230 | -10/Mines | Assisted by bots powering up and referring to "LRC-V3" 313 | -10/Mines | Build established: Mutant 395 | -10/Mines | Learned Materials trap positions 506 | -10/Mines | Discovered new exit (range 15) 627 | -10/Mines | Discovered new exit (range 6) 643 | -10/Mines | Learned Materials garrison access intel 751 | -10/Mines | Entered Materials 751 | -9/Materials | Accompanied by 2 allies 751 | -9/Materials | Evolved 2 slots: Weapon x2 752 | -9/Materials | Loaded intel: 17 trap records 1066 | -9/Materials | Build established: Gunner 1443 | -9/Materials | Discovered new exit (range 6) 1568 | -9/Materials | Lost 3 parts (1p2w) 1585 | -9/Materials | Discovered new exit (range 15) 1754 | -9/Materials | Entered Storage 2074 | -9/Storage | Repaired Arm. Wheel 2108 | -9/Storage | Repaired Arm. Wheel 2241 | -9/Storage | Core integrity fell below 50% 2525 | -9/Storage | Assisted by bots powering up and referring to "LRC-V3" 2662 | -9/Storage | Lost 4 allies 2781 | -9/Storage | Discovered new exit (range 15) 2812 | -9/Storage | Build established: Commander-Gunner 2954 | -9/Storage | First assault squad dispatched 3038 | -9/Storage | Lost 4 allies 3068 | -9/Storage | Lost 4 parts (2n2w) 3069 | -9/Storage | Self-destructed Last Messages --------------- 03011_ The unstable cave ceiling collapses. 03013_ Critical hit (Burn: +37). 03014_ Arm. Wheel destroyed. 03014_ Rocket Launcher destroyed. 03017_ L-31 Rogue destroyed. 03018_ Acquired 40 matter. 03021_ The unstable cave ceiling collapses. 03029_ Arm. Wheel destroyed. 03037_ Mni. Grenade Launcher destroyed. 03038_ G-47 Trooper destroyed. 03041_ The unstable cave ceiling collapses. 03044_ Acquired 43 matter. 03045_ U-05 Engineer lays Concrete. 03046_ U-05 Engineer builds a Wall. 03050_ U-05 Engineer lays Concrete. 03051_ M-13 Machinist destroyed. 03052_ U-05 Engineer lays Concrete. 03056_ The unstable cave ceiling collapses. 03056_ U-05 Engineer lays Concrete. 03069_ The unstable cave ceiling collapses. Map ----- +----------------------------------------------------+ | | | | | | | | | | | | | ??##########???????????????????? | | ??# #???????????????????? | | ### """ #???????????????????? | | # """ ! ##??????????????????? | | =# """ "#??????????????????? | | ! " T#??????????????????? | | !!# "#??????????????????? | | #=[= ##??????????????????? | | ###=[= #???????????????????? | | ??#=[ #?????#####?????????? | | ??## #######?????#= =#??????#### | | ???###???????????#= =#?????? # # | | ?????????????????#= =??#"""" | | ?????????????????#= =??## # # | | ?????????????????#" "### ### # | | ?????????????????# T # # ## | | ?????????????????# ### # ? | | ?????????????????## #?? | | ?????????## ### [**[= ##?? | | ????????# =%= ! @ ##??? | | ???????# %= ===%!#####???? | | ???????# [ #=%%########? | | ????????## u =+== # [[#? | | ?????????# """"" #= # [[#? | | ????????????"""" # [# [[#? | | ????????????"""" ?# # #? | | ???????????? ??#* ##T# ]]]#? | | ?????????????#######% #### ]]]#? | | ???????????#### " #???#####? | | ???????????# #????????? | | ???????????# #/#############??? | | #??######### # ##?? | | #?# / """ """ """ #?? | | ###+####### ## """ """ """ #??? | | #! ! ! # ## """ """ """ #??? | | # # ## % #??? | | # * # ## * [ #??? | | # [ # #######+#######??? | | ###+#####+# #???????? | | *[% #???????? | | *=%*##### #???????? | | *T%*#???# #???????? | | =/[[#???# #???????? | | !=#???####+####### #???????? | +----------------------------------------------------+ Best States ------------- Heat Dissipation 38 Energy Generation 14 Energy Capacity 280 Matter Stores 300 Matter Capacity 300 Sight Range 16 Robot Scan Range 14 Terrain Scan Density 10 Evasion (%) 50 Targeting Accuracy 8 Item Schematics ----------------- Arm. Wheel | -9/Materials | Scanalyzed Hvy. Missile Launcher | -9/Storage | Hacked Imp. Treads | -9/Storage | Hacked Robot Schematics ------------------ None Fabricated ------------ Nothing Alien Tech Used ----------------- None Achievements -------------- None Challenges ------------ None Game ------ Seed SuspensionSensorShockpuncher Manual? 0 Play Time 00:34:34 Cumulative 23.5 hours Start 2025.03.12 @ 21:50:39 End 2025.03.12 @ 22:37:05 Sessions 1 Manual Loads 0 Difficulty Rogue Special Mode None Game No. 28 Rogue 26 Adventurer 2 Explorer 0 Win Type - Total 0 Types 0/0/0/0/0/0/0/0/0 Lore% 11 Gallery% 22 Achievement% 23 Wizard Run 0 Options --------- Layout 1 ASCII 0 Keyboard 0 Movement Mouse Keybinds 0 Fullscreen 1 Font 24/Smallcaps Map View 50x35 Zoom Use 0% Tactical HUD 1 Map Filters NONE Filters NONE Steam 1 RUN: 4cbfbcda-4c4c-4b3f-9edd-46d6e84a3bc6